[Event "*** SCC Grand Prix: Titled Tuesday Blitz"]
[Site "Chess.com"]
[Date "2020.08.25"]
[Round "8"]
[White "Falcon28dz"]
[Black "ChelsieMonica"]
[Result "1-0"]
[WhiteElo "2171"]
[BlackElo "2398"]
[TimeControl "180+1"]
[EndTime "11:36:07 PDT"]
[Termination "Falcon28dz won by resignation"]

1. e4 {[%clk 0:03:00.9]} 1... e5 {[%clk 0:02:58.5]} 2. Nf3 {[%clk 0:03:00.2]}
2... Nc6 {[%clk 0:02:58.2]} 3. Bc4 {[%clk 0:02:59.4]} 3... Be7 {[%clk
0:02:55.1]} 4. d3 {[%clk 0:02:52.7]} 4... Nf6 {[%clk 0:02:53.6]} 5. O-O {[%clk
0:02:50.2]} 5... O-O {[%clk 0:02:53.2]} 6. Re1 {[%clk 0:02:48.7]} 6... d6 {[%clk
0:02:53.3]} 7. c3 {[%clk 0:02:42]} 7... Be6 {[%clk 0:02:53.6]} 8. Bb5 {[%clk
0:02:34.6]} 8... a6 {[%clk 0:02:52.4]} 9. Ba4 {[%clk 0:02:34.4]} 9... b5 {[%clk
0:02:51.7]} 10. Bc2 {[%clk 0:02:34.4]} 10... Nd7 {[%clk 0:02:47.3]} 11. d4
{[%clk 0:02:30]} 11... Bg4 {[%clk 0:02:47]} 12. d5 {[%clk 0:02:26.4]} 12... Na5
{[%clk 0:02:45.2]} 13. Nbd2 {[%clk 0:02:21.1]} 13... c5 {[%clk 0:02:39.7]} 14.
h3 {[%clk 0:02:18]} 14... Bh5 {[%clk 0:02:38.3]} 15. g4 {[%clk 0:02:13.5]} 15...
Bg6 {[%clk 0:02:35.4]} 16. Nf1 {[%clk 0:02:12.6]} 16... Nc4 {[%clk 0:02:35]} 17.
Ng3 {[%clk 0:02:07.7]} 17... a5 {[%clk 0:02:35.3]} 18. a4 {[%clk 0:02:00]} 18...
b4 {[%clk 0:02:34.5]} 19. b3 {[%clk 0:01:49]} 19... Ncb6 {[%clk 0:02:34.3]} 20.
c4 {[%clk 0:01:48.7]} 20... Bh4 {[%clk 0:02:24.7]} 21. Kh2 {[%clk 0:01:40]}
21... Bxg3+ {[%clk 0:02:18]} 22. fxg3 {[%clk 0:01:40]} 22... h6 {[%clk
0:02:08.5]} 23. Be3 {[%clk 0:01:38.6]} 23... Kh7 {[%clk 0:02:06.9]} 24. Nh4
{[%clk 0:01:35.2]} 24... Nf6 {[%clk 0:02:05.8]} 25. Qf3 {[%clk 0:01:28.8]} 25...
Nbd7 {[%clk 0:02:03.7]} 26. Rf1 {[%clk 0:01:27]} 26... Ra7 {[%clk 0:02:02.8]}
27. Rf2 {[%clk 0:01:24.1]} 27... Ng8 {[%clk 0:01:59.9]} 28. Raf1 {[%clk
0:01:18.8]} 28... Nb6 {[%clk 0:01:53.8]} 29. Nxg6 {[%clk 0:01:13.5]} 29... Re8
{[%clk 0:01:52]} 30. Nh4 {[%clk 0:01:12.3]} 30... g6 {[%clk 0:01:50.5]} 31. Qe2
{[%clk 0:01:05.9]} 31... Kg7 {[%clk 0:01:47.8]} 32. Qd2 {[%clk 0:01:04.6]} 32...
Nc8 {[%clk 0:01:44.7]} 33. g5 {[%clk 0:01:04]} 33... h5 {[%clk 0:01:44.7]} 34.
Qe2 {[%clk 0:01:02.1]} 34... Rf8 {[%clk 0:01:42.9]} 35. g4 {[%clk 0:01:02]}
35... hxg4 {[%clk 0:01:40.8]} 36. Qxg4 {[%clk 0:01:02.9]} 36... Qd7 {[%clk
0:01:40.6]} 37. Qg3 {[%clk 0:00:57.9]} 37... Nb6 {[%clk 0:01:40]} 38. Bd1 {[%clk
0:00:48.7]} 38... Qd8 {[%clk 0:01:38]} 39. Rf6 {[%clk 0:00:46.6]} 39... Nd7
{[%clk 0:01:31.1]} 40. R6f2 {[%clk 0:00:42.6]} 40... Ne7 {[%clk 0:01:27.1]} 41.
Bg4 {[%clk 0:00:42.3]} 41... Nb6 {[%clk 0:01:26.5]} 42. Rf6 {[%clk 0:00:41.3]}
42... Ng8 {[%clk 0:01:26.7]} 43. Bf5 {[%clk 0:00:25.3]} 43... Nxf6 {[%clk
0:01:19.3]} 44. gxf6+ {[%clk 0:00:25.7]} 44... Kh7 {[%clk 0:01:04.4]} 45. Qg5
{[%clk 0:00:25.8]} 45... Kg8 {[%clk 0:01:01.6]} 46. Bg4 {[%clk 0:00:24.4]} 46...
Nd7 {[%clk 0:00:59.4]} 47. Bxd7 {[%clk 0:00:22.8]} 47... Rxd7 {[%clk 0:00:52.9]}
48. Qh6 {[%clk 0:00:23]} 48... Qxf6 {[%clk 0:00:52.6]} 49. Rxf6 {[%clk
0:00:23.9]} 1-0

[Event "*** SCC Grand Prix: Titled Tuesday Blitz"]
[Site "Chess.com"]
[Date "2020.08.25"]
[Round "8"]
[White "Alembong"]
[Black "lifeissofun"]
[Result "0-1"]
[WhiteElo "2433"]
[BlackElo "2279"]
[TimeControl "180+1"]
[EndTime "11:36:10 PDT"]
[Termination "lifeissofun won by resignation"]

1. d4 {[%clk 0:03:00.9]} 1... Nf6 {[%clk 0:02:58.7]} 2. Nf3 {[%clk 0:03:00.7]}
2... e6 {[%clk 0:02:58.8]} 3. g3 {[%clk 0:02:59.3]} 3... d5 {[%clk 0:02:58.4]}
4. Bg2 {[%clk 0:02:59.1]} 4... Bb4+ {[%clk 0:02:58.6]} 5. c3 {[%clk 0:02:57.2]}
5... Be7 {[%clk 0:02:58.8]} 6. O-O {[%clk 0:02:57.5]} 6... O-O {[%clk
0:02:59.7]} 7. c4 {[%clk 0:02:57.1]} 7... c6 {[%clk 0:02:57.4]} 8. Qc2 {[%clk
0:02:54.5]} 8... Nbd7 {[%clk 0:02:57.2]} 9. Nbd2 {[%clk 0:02:54.2]} 9... b6
{[%clk 0:02:55.9]} 10. e4 {[%clk 0:02:51.2]} 10... dxe4 {[%clk 0:02:54.5]} 11.
Nxe4 {[%clk 0:02:50.3]} 11... Bb7 {[%clk 0:02:54.9]} 12. Re1 {[%clk 0:02:38.3]}
12... c5 {[%clk 0:02:54]} 13. Nxf6+ {[%clk 0:02:34.1]} 13... Bxf6 {[%clk
0:02:54.9]} 14. Ng5 {[%clk 0:01:45.5]} 14... Bxg5 {[%clk 0:02:44.8]} 15. Bxb7
{[%clk 0:01:44.8]} 15... Rb8 {[%clk 0:02:45]} 16. Bxg5 {[%clk 0:01:44.7]} 16...
Qxg5 {[%clk 0:02:44.3]} 17. Bc6 {[%clk 0:01:45]} 17... Nf6 {[%clk 0:02:39.7]}
18. dxc5 {[%clk 0:01:42]} 18... Qxc5 {[%clk 0:02:40.6]} 19. Bf3 {[%clk
0:01:37.3]} 19... Rbc8 {[%clk 0:02:40.1]} 20. Rac1 {[%clk 0:01:36.1]} 20... Rfd8
{[%clk 0:02:33.7]} 21. Red1 {[%clk 0:01:35.3]} 21... Rxd1+ {[%clk 0:02:29]} 22.
Qxd1 {[%clk 0:01:32.7]} 22... h6 {[%clk 0:02:18.9]} 23. Qe2 {[%clk 0:01:31.4]}
23... Qd4 {[%clk 0:02:15.3]} 24. b3 {[%clk 0:01:24.5]} 24... Rd8 {[%clk
0:02:08.8]} 25. Rd1 {[%clk 0:01:24.1]} 25... Qxd1+ {[%clk 0:02:08.9]} 26. Qxd1
{[%clk 0:01:25]} 26... Rxd1+ {[%clk 0:02:09.1]} 27. Bxd1 {[%clk 0:01:25.9]}
27... Ne4 {[%clk 0:02:09]} 28. Bc2 {[%clk 0:01:20.4]} 28... Nd6 {[%clk
0:01:53.3]} 29. Kf1 {[%clk 0:01:17.9]} 29... Kf8 {[%clk 0:01:53.7]} 30. Ke2
{[%clk 0:01:17.8]} 30... Ke7 {[%clk 0:01:54.3]} 31. Kd3 {[%clk 0:01:10.7]} 31...
a5 {[%clk 0:01:53.7]} 32. a3 {[%clk 0:01:09.6]} 32... Nb7 {[%clk 0:01:45]} 33.
b4 {[%clk 0:01:09.2]} 33... Kd6 {[%clk 0:01:45.4]} 34. Kd4 {[%clk 0:00:59.2]}
34... e5+ {[%clk 0:01:38.6]} 35. Ke4 {[%clk 0:00:59.1]} 35... Ke6 {[%clk
0:01:36.8]} 36. f3 {[%clk 0:00:31.4]} 36... Nd6+ {[%clk 0:01:31.9]} 37. Kd3
{[%clk 0:00:30.5]} 37... Nb7 {[%clk 0:01:31.4]} 38. Bb3 {[%clk 0:00:27.4]} 38...
Kd6 {[%clk 0:01:29.3]} 39. Ke4 {[%clk 0:00:27.2]} 39... f6 {[%clk 0:01:25.3]}
40. Kf5 {[%clk 0:00:25.7]} 40... Ke7 {[%clk 0:01:25.5]} 41. Kg6 {[%clk
0:00:23.7]} 41... Kf8 {[%clk 0:01:25.4]} 42. Bc2 {[%clk 0:00:12]} 42... Kg8
{[%clk 0:01:09.6]} 43. Be4 {[%clk 0:00:11.2]} 43... Nd6 {[%clk 0:01:02.6]} 44.
Bd5+ {[%clk 0:00:11.5]} 44... Kf8 {[%clk 0:01:00.8]} 45. c5 {[%clk 0:00:11.7]}
45... bxc5 {[%clk 0:00:58.1]} 46. bxa5 {[%clk 0:00:12.1]} 46... Nc8 {[%clk
0:00:59]} 47. a6 {[%clk 0:00:08.4]} 47... Ne7+ {[%clk 0:00:56.5]} 0-1

[Event "*** SCC Grand Prix: Titled Tuesday Blitz"]
[Site "Chess.com"]
[Date "2020.08.25"]
[Round "8"]
[White "ftorodent"]
[Black "Siemba"]
[Result "1-0"]
[WhiteElo "2673"]
[BlackElo "2473"]
[TimeControl "180+1"]
[EndTime "11:36:13 PDT"]
[Termination "ftorodent won on time"]

1. d4 {[%clk 0:03:00.9]} 1... d5 {[%clk 0:02:59.8]} 2. c4 {[%clk 0:03:00.5]}
2... c5 {[%clk 0:02:59.8]} 3. cxd5 {[%clk 0:02:57.3]} 3... Nf6 {[%clk
0:03:00.3]} 4. Nc3 {[%clk 0:02:51.8]} 4... Nxd5 {[%clk 0:02:57.1]} 5. e4 {[%clk
0:02:51.2]} 5... Nxc3 {[%clk 0:02:55.5]} 6. bxc3 {[%clk 0:02:51.4]} 6... cxd4
{[%clk 0:02:52]} 7. cxd4 {[%clk 0:02:51.5]} 7... e5 {[%clk 0:02:52.7]} 8. d5
{[%clk 0:02:45.5]} 8... Bd6 {[%clk 0:02:42.8]} 9. Nf3 {[%clk 0:02:44.4]} 9...
O-O {[%clk 0:02:40.2]} 10. Be2 {[%clk 0:02:44.5]} 10... Bg4 {[%clk 0:02:38.9]}
11. Nd2 {[%clk 0:02:40]} 11... Bxe2 {[%clk 0:02:38.6]} 12. Qxe2 {[%clk
0:02:40.3]} 12... Nd7 {[%clk 0:02:36.1]} 13. O-O {[%clk 0:02:40.1]} 13... Rc8
{[%clk 0:02:28.2]} 14. Nc4 {[%clk 0:02:37.1]} 14... Nb6 {[%clk 0:02:26]} 15.
Nxd6 {[%clk 0:02:20.6]} 15... Qxd6 {[%clk 0:02:26.9]} 16. Be3 {[%clk 0:02:20.9]}
16... Nc4 {[%clk 0:02:22]} 17. Rfc1 {[%clk 0:02:20.1]} 17... Qa6 {[%clk
0:01:26]} 18. Bxa7 {[%clk 0:01:56.9]} 18... b5 {[%clk 0:00:52.7]} 19. Be3 {[%clk
0:01:55.2]} 19... Qa3 {[%clk 0:00:51.6]} 20. h3 {[%clk 0:01:38.5]} 20... h6
{[%clk 0:00:33]} 21. Rab1 {[%clk 0:01:02.2]} 21... Qa4 {[%clk 0:00:08.8]} 22.
Rc3 {[%clk 0:00:52.7]} 22... Rb8 {[%clk 0:00:07.8]} 23. Bc5 {[%clk 0:00:47.7]}
23... Rfc8 {[%clk 0:00:07.3]} 24. Bb4 {[%clk 0:00:47.7]} 24... Ra8 {[%clk
0:00:05.9]} 25. a3 {[%clk 0:00:46.6]} 25... Rab8 {[%clk 0:00:05.8]} 26. Qc2
{[%clk 0:00:45.3]} 26... Ra8 {[%clk 0:00:02.1]} 27. Rc1 {[%clk 0:00:42]} 27...
Rcb8 {[%clk 0:00:02.4]} 28. Qe2 {[%clk 0:00:40.9]} 28... g6 {[%clk 0:00:01.7]}
29. Qg4 {[%clk 0:00:39.9]} 29... Kg7 {[%clk 0:00:02.4]} 30. Kh2 {[%clk
0:00:33.8]} 30... Qa6 {[%clk 0:00:02.4]} 31. f4 {[%clk 0:00:32.1]} 31... h5
{[%clk 0:00:02.2]} 32. Qf3 {[%clk 0:00:30]} 32... Qf6 {[%clk 0:00:01.9]} 33. f5
{[%clk 0:00:29.2]} 1-0

[Event "*** SCC Grand Prix: Titled Tuesday Blitz"]
[Site "Chess.com"]
[Date "2020.08.25"]
[Round "8"]
[White "WinstonSilvakov"]
[Black "annamaja"]
[Result "1-0"]
[WhiteElo "2131"]
[BlackElo "2235"]
[TimeControl "180+1"]
[EndTime "11:36:17 PDT"]
[Termination "WinstonSilvakov won on time"]

1. d4 {[%clk 0:03:00.9]} 1... d5 {[%clk 0:02:59.3]} 2. e3 {[%clk 0:03:00.2]}
2... Nf6 {[%clk 0:02:59.2]} 3. Bd3 {[%clk 0:02:59.6]} 3... e6 {[%clk 0:02:59]}
4. Nd2 {[%clk 0:02:59.4]} 4... c5 {[%clk 0:02:58.3]} 5. c3 {[%clk 0:02:59.4]}
5... Nc6 {[%clk 0:02:58.3]} 6. f4 {[%clk 0:02:59.1]} 6... Bd6 {[%clk 0:02:58]}
7. Ngf3 {[%clk 0:02:58.7]} 7... O-O {[%clk 0:02:52.2]} 8. O-O {[%clk 0:02:57.7]}
8... a5 {[%clk 0:02:45]} 9. Ne5 {[%clk 0:02:57.1]} 9... Qc7 {[%clk 0:02:36.3]}
10. g4 {[%clk 0:02:55.7]} 10... Bxe5 {[%clk 0:02:23.2]} 11. fxe5 {[%clk
0:02:46.8]} 11... Nxe5 {[%clk 0:02:22.6]} 12. dxe5 {[%clk 0:02:41.7]} 12... Qxe5
{[%clk 0:02:23.5]} 13. Nf3 {[%clk 0:02:41.1]} 13... Qd6 {[%clk 0:02:19.3]} 14.
g5 {[%clk 0:02:37.1]} 14... Nd7 {[%clk 0:02:16.7]} 15. e4 {[%clk 0:02:31.3]}
15... b6 {[%clk 0:02:11.7]} 16. e5 {[%clk 0:02:26.1]} 16... Nxe5 {[%clk
0:02:03.4]} 17. Bf4 {[%clk 0:02:24.5]} 17... f6 {[%clk 0:01:55]} 18. gxf6 {[%clk
0:02:16.1]} 18... gxf6 {[%clk 0:01:53]} 19. Bh6 {[%clk 0:02:12.3]} 19... Rf7
{[%clk 0:01:44.9]} 20. Nxe5 {[%clk 0:02:08.4]} 20... Qxe5 {[%clk 0:01:39.6]} 21.
Bf4 {[%clk 0:02:03.2]} 21... Rg7+ {[%clk 0:01:18.5]} 22. Kh1 {[%clk 0:02:00.9]}
22... Bb7 {[%clk 0:01:01.1]} 23. Bxe5 {[%clk 0:01:53.8]} 23... d4+ {[%clk
0:00:57.5]} 24. Qf3 {[%clk 0:01:46.4]} 24... Bxf3+ {[%clk 0:00:49.6]} 25. Rxf3
{[%clk 0:01:47.3]} 25... fxe5 {[%clk 0:00:50.1]} 26. Re1 {[%clk 0:01:44.6]}
26... dxc3 {[%clk 0:00:43.5]} 27. bxc3 {[%clk 0:01:43]} 27... Rd8 {[%clk
0:00:42.2]} 28. Rxe5 {[%clk 0:01:39.9]} 28... Rd6 {[%clk 0:00:38.6]} 29. Rfe3
{[%clk 0:01:26.1]} 29... Kf7 {[%clk 0:00:30.4]} 30. Be2 {[%clk 0:01:23.9]} 30...
Ke7 {[%clk 0:00:20.4]} 31. h3 {[%clk 0:01:22]} 31... Rg6 {[%clk 0:00:18.2]} 32.
Bc4 {[%clk 0:01:17.7]} 32... a4 {[%clk 0:00:13.2]} 33. Re2 {[%clk 0:01:11.8]}
33... Rd1+ {[%clk 0:00:12.5]} 34. Kh2 {[%clk 0:01:10.6]} 34... Rd6 {[%clk
0:00:13.4]} 35. a3 {[%clk 0:01:08.3]} 35... Rf6 {[%clk 0:00:10]} 36. Bb5 {[%clk
0:01:07.4]} 36... Rd1 {[%clk 0:00:08.9]} 37. Bxa4 {[%clk 0:01:05.7]} 37... Rd3
{[%clk 0:00:08.7]} 38. Bb3 {[%clk 0:01:02.6]} 38... Rff3 {[%clk 0:00:08.9]} 39.
Rxe6+ {[%clk 0:01:02]} 39... Kd7 {[%clk 0:00:09.3]} 40. Rh6 {[%clk 0:00:59.5]}
40... Rxc3 {[%clk 0:00:07.9]} 41. Rxh7+ {[%clk 0:00:59.4]} 41... Kc6 {[%clk
0:00:08.4]} 42. Ba4+ {[%clk 0:00:53.5]} 42... Kd5 {[%clk 0:00:07.6]} 43. Rd2+
{[%clk 0:00:51.3]} 43... Ke5 {[%clk 0:00:02.1]} 44. Rh5+ {[%clk 0:00:48.2]} 1-0

[Event "*** SCC Grand Prix: Titled Tuesday Blitz"]
[Site "Chess.com"]
[Date "2020.08.25"]
[Round "8"]
[White "Schack-Hugo"]
[Black "MikeSailer"]
[Result "0-1"]
[WhiteElo "2269"]
[BlackElo "2179"]
[TimeControl "180+1"]
[EndTime "11:36:18 PDT"]
[Termination "MikeSailer won on time"]

1. c4 {[%clk 0:03:00.9]} 1... c6 {[%clk 0:02:59.5]} 2. d4 {[%clk 0:02:56.1]}
2... d5 {[%clk 0:02:59.9]} 3. Nc3 {[%clk 0:02:55]} 3... Nf6 {[%clk 0:03:00.3]}
4. Nf3 {[%clk 0:02:54.2]} 4... a6 {[%clk 0:03:00.8]} 5. e3 {[%clk 0:02:48.2]}
5... Bg4 {[%clk 0:03:00.3]} 6. c5 {[%clk 0:02:46.2]} 6... Nbd7 {[%clk
0:02:57.2]} 7. Be2 {[%clk 0:02:41.7]} 7... e5 {[%clk 0:02:46.7]} 8. O-O {[%clk
0:02:30.3]} 8... e4 {[%clk 0:02:39.7]} 9. Nd2 {[%clk 0:02:29.7]} 9... Be6 {[%clk
0:02:16]} 10. b4 {[%clk 0:01:45.8]} 10... Be7 {[%clk 0:02:14.3]} 11. Nb3 {[%clk
0:01:44.9]} 11... O-O {[%clk 0:02:14.9]} 12. a4 {[%clk 0:01:44.9]} 12... Qe8
{[%clk 0:01:51.9]} 13. Bd2 {[%clk 0:01:38.1]} 13... Bd8 {[%clk 0:01:51.8]} 14.
Qc2 {[%clk 0:01:26.3]} 14... Bc7 {[%clk 0:01:51.8]} 15. b5 {[%clk 0:01:26.2]}
15... axb5 {[%clk 0:01:51.7]} 16. axb5 {[%clk 0:01:27.1]} 16... Rxa1 {[%clk
0:01:51.5]} 17. Rxa1 {[%clk 0:01:26.1]} 17... Ng4 {[%clk 0:01:37.9]} 18. h3
{[%clk 0:01:09.3]} 18... Nh6 {[%clk 0:01:31.7]} 19. Ra7 {[%clk 0:01:05.4]} 19...
Qc8 {[%clk 0:01:15.8]} 20. Na4 {[%clk 0:00:19.5]} 20... Bb8 {[%clk 0:01:06.1]}
21. Ra8 {[%clk 0:00:14.5]} 21... Bh2+ {[%clk 0:01:06]} 22. Kxh2 {[%clk
0:00:13.5]} 22... Qxa8 {[%clk 0:01:06.8]} 23. Na5 {[%clk 0:00:10.6]} 23... f5
{[%clk 0:00:45.6]} 24. Kg1 {[%clk 0:00:10.1]} 24... f4 {[%clk 0:00:42.4]} 25.
exf4 {[%clk 0:00:08.6]} 25... Nf5 {[%clk 0:00:43]} 26. Be3 {[%clk 0:00:08.2]}
26... Qxa5 {[%clk 0:00:30.4]} 27. Nc3 {[%clk 0:00:02.3]} 27... cxb5 {[%clk
0:00:19.3]} 28. Bxb5 {[%clk 0:00:01.4]} 28... Nb8 {[%clk 0:00:17.6]} 29. g4
{[%clk 0:00:01.1]} 29... Nh4 {[%clk 0:00:15.5]} 0-1

[Event "*** SCC Grand Prix: Titled Tuesday Blitz"]
[Site "Chess.com"]
[Date "2020.08.25"]
[Round "8"]
[White "GregShahade"]
[Black "kleopl"]
[Result "1-0"]
[WhiteElo "2665"]
[BlackElo "2438"]
[TimeControl "180+1"]
[EndTime "11:36:19 PDT"]
[Termination "GregShahade won by checkmate"]

1. e4 {[%clk 0:03:00.9]} 1... c6 {[%clk 0:02:17.5]} 2. Nc3 {[%clk 0:02:54.3]}
2... d5 {[%clk 0:02:18.4]} 3. Nf3 {[%clk 0:02:53.9]} 3... Nf6 {[%clk 0:02:18.3]}
4. e5 {[%clk 0:02:51.9]} 4... Ne4 {[%clk 0:02:18.5]} 5. Ne2 {[%clk 0:02:51.7]}
5... Bg4 {[%clk 0:02:16.5]} 6. Nfg1 {[%clk 0:02:45.2]} 6... Bxe2 {[%clk
0:02:12.9]} 7. Bxe2 {[%clk 0:02:36.8]} 7... e6 {[%clk 0:02:00.7]} 8. d3 {[%clk
0:02:34.4]} 8... Bb4+ {[%clk 0:01:53]} 9. Kf1 {[%clk 0:02:10.9]} 9... Nc5 {[%clk
0:01:45.5]} 10. c3 {[%clk 0:02:01.3]} 10... Ba5 {[%clk 0:01:43.5]} 11. b4 {[%clk
0:02:01.2]} 11... Ncd7 {[%clk 0:01:43.6]} 12. bxa5 {[%clk 0:02:00.9]} 12... Nxe5
{[%clk 0:01:43.7]} 13. d4 {[%clk 0:01:48.3]} 13... Ng6 {[%clk 0:01:40.9]} 14.
Rb1 {[%clk 0:01:44.8]} 14... Qxa5 {[%clk 0:01:34.9]} 15. Rxb7 {[%clk 0:01:40.7]}
15... Qxc3 {[%clk 0:01:34.5]} 16. Bb2 {[%clk 0:01:30.2]} 16... Qa5 {[%clk
0:01:33.6]} 17. Qb3 {[%clk 0:01:19.5]} 17... O-O {[%clk 0:01:32.4]} 18. Nf3
{[%clk 0:01:19.6]} 18... Nf4 {[%clk 0:01:28.3]} 19. Bc3 {[%clk 0:01:07.2]} 19...
Qd8 {[%clk 0:01:23.1]} 20. g3 {[%clk 0:00:50.6]} 20... Nxe2 {[%clk 0:01:22]} 21.
Kxe2 {[%clk 0:00:51.5]} 21... Nd7 {[%clk 0:01:20]} 22. Rb1 {[%clk 0:00:47.1]}
22... Nb6 {[%clk 0:01:19.1]} 23. Qa3 {[%clk 0:00:33.2]} 23... Re8 {[%clk
0:01:16]} 24. Rxa7 {[%clk 0:00:31.3]} 24... Rb8 {[%clk 0:01:00.1]} 25. Ba5
{[%clk 0:00:27.8]} 25... e5 {[%clk 0:00:42.7]} 26. Qc5 {[%clk 0:00:22.6]} 26...
exd4+ {[%clk 0:00:39.3]} 27. Kf1 {[%clk 0:00:22.7]} 27... Na4 {[%clk 0:00:36.4]}
28. Qc1 {[%clk 0:00:15.1]} 28... Rxb1 {[%clk 0:00:32.8]} 29. Qxb1 {[%clk
0:00:16]} 29... Qf6 {[%clk 0:00:32.8]} 30. Kg2 {[%clk 0:00:16.5]} 30... h5
{[%clk 0:00:28.5]} 31. h4 {[%clk 0:00:13.8]} 31... Nc3 {[%clk 0:00:25.8]} 32.
Qd3 {[%clk 0:00:13.8]} 32... c5 {[%clk 0:00:25.2]} 33. Bxc3 {[%clk 0:00:11.7]}
33... dxc3 {[%clk 0:00:25]} 34. Qxd5 {[%clk 0:00:12.2]} 34... c2 {[%clk
0:00:23.9]} 35. Qc4 {[%clk 0:00:12.5]} 35... Qf5 {[%clk 0:00:19.7]} 36. Ng5
{[%clk 0:00:07.9]} 36... Re2 {[%clk 0:00:17.5]} 37. Qxe2 {[%clk 0:00:07.6]}
37... c1=Q {[%clk 0:00:17.2]} 38. Qe8# {[%clk 0:00:07.6]} 1-0

[Event "*** SCC Grand Prix: Titled Tuesday Blitz"]
[Site "Chess.com"]
[Date "2020.08.25"]
[Round "8"]
[White "salimalamri2020"]
[Black "pavelalexandru07"]
[Result "1-0"]
[WhiteElo "2050"]
[BlackElo "2182"]
[TimeControl "180+1"]
[EndTime "11:36:19 PDT"]
[Termination "salimalamri2020 won by resignation"]

1. e4 {[%clk 0:03:00]} 1... c5 {[%clk 0:02:59.9]} 2. Nf3 {[%clk 0:02:57]} 2...
d6 {[%clk 0:03:00.3]} 3. d4 {[%clk 0:02:57.9]} 3... cxd4 {[%clk 0:03:00.8]} 4.
Nxd4 {[%clk 0:02:58.6]} 4... Nf6 {[%clk 0:03:01.3]} 5. Nc3 {[%clk 0:02:59.1]}
5... a6 {[%clk 0:03:01.8]} 6. Bg5 {[%clk 0:02:59.4]} 6... Nbd7 {[%clk 0:03:02]}
7. f4 {[%clk 0:02:46.6]} 7... Qc7 {[%clk 0:03:02.4]} 8. Qe2 {[%clk 0:02:40.9]}
8... h6 {[%clk 0:02:42]} 9. Bh4 {[%clk 0:02:31.8]} 9... g5 {[%clk 0:02:41.7]}
10. fxg5 {[%clk 0:02:29.6]} 10... hxg5 {[%clk 0:02:42.6]} 11. Bxg5 {[%clk
0:02:28.9]} 11... e6 {[%clk 0:02:40.9]} 12. O-O-O {[%clk 0:02:25.6]} 12... Be7
{[%clk 0:02:29.8]} 13. h4 {[%clk 0:02:24.3]} 13... b5 {[%clk 0:02:19.3]} 14. g4
{[%clk 0:02:02.4]} 14... Bb7 {[%clk 0:02:16.9]} 15. Bg2 {[%clk 0:01:52.3]} 15...
O-O-O {[%clk 0:02:09.6]} 16. Rhf1 {[%clk 0:01:31.6]} 16... Rhg8 {[%clk
0:01:56.6]} 17. Kb1 {[%clk 0:01:26.1]} 17... Qb6 {[%clk 0:01:50.7]} 18. Be3
{[%clk 0:01:22.7]} 18... Qa5 {[%clk 0:01:41.6]} 19. g5 {[%clk 0:01:18.7]} 19...
Ne8 {[%clk 0:01:09.8]} 20. Qg4 {[%clk 0:01:17.2]} 20... Ne5 {[%clk 0:01:07.9]}
21. Qg3 {[%clk 0:01:05.2]} 21... Kb8 {[%clk 0:00:47.4]} 22. Bf4 {[%clk
0:00:54.4]} 22... Rc8 {[%clk 0:00:21.2]} 23. Nb3 {[%clk 0:00:50.4]} 23... Qc7
{[%clk 0:00:17.4]} 24. Bxe5 {[%clk 0:00:49.3]} 24... dxe5 {[%clk 0:00:17.4]} 25.
Rxf7 {[%clk 0:00:48.4]} 25... Nd6 {[%clk 0:00:14.9]} 26. Rh7 {[%clk 0:00:44.4]}
26... Nc4 {[%clk 0:00:12.6]} 27. Bh3 {[%clk 0:00:31]} 27... Rh8 {[%clk
0:00:10.7]} 28. Rxh8 {[%clk 0:00:29.3]} 28... Rxh8 {[%clk 0:00:11.6]} 29. Bxe6
{[%clk 0:00:28]} 29... b4 {[%clk 0:00:08.4]} 30. Bxc4 {[%clk 0:00:27.6]} 30...
Qxc4 {[%clk 0:00:07.3]} 31. Qxe5+ {[%clk 0:00:27.1]} 31... Ka7 {[%clk
0:00:05.8]} 32. Qxh8 {[%clk 0:00:26.8]} 32... bxc3 {[%clk 0:00:06.1]} 33. Qxc3
{[%clk 0:00:26.5]} 33... Qxe4 {[%clk 0:00:06.4]} 34. Qd4+ {[%clk 0:00:25.2]} 1-0

[Event "*** SCC Grand Prix: Titled Tuesday Blitz"]
[Site "Chess.com"]
[Date "2020.08.25"]
[Round "8"]
[White "MrrRefrao"]
[Black "MashaFromRussia"]
[Result "0-1"]
[WhiteElo "2199"]
[BlackElo "2391"]
[TimeControl "180+1"]
[EndTime "11:36:20 PDT"]
[Termination "MashaFromRussia won on time"]

1. c4 {[%clk 0:02:59.1]} 1... e5 {[%clk 0:02:59.2]} 2. g3 {[%clk 0:02:56.3]}
2... d6 {[%clk 0:02:58.7]} 3. Bg2 {[%clk 0:02:55.3]} 3... f5 {[%clk 0:02:59.2]}
4. Nc3 {[%clk 0:02:50.4]} 4... Nf6 {[%clk 0:02:59.1]} 5. d3 {[%clk 0:02:50.6]}
5... g6 {[%clk 0:02:59]} 6. e4 {[%clk 0:02:50.7]} 6... Bg7 {[%clk 0:02:59]} 7.
Nge2 {[%clk 0:02:50.3]} 7... O-O {[%clk 0:02:59.5]} 8. O-O {[%clk 0:02:49.2]}
8... Nc6 {[%clk 0:03:00]} 9. exf5 {[%clk 0:02:42.4]} 9... Bxf5 {[%clk
0:02:57.7]} 10. d4 {[%clk 0:02:39.6]} 10... e4 {[%clk 0:02:50.5]} 11. h3 {[%clk
0:02:36.7]} 11... h5 {[%clk 0:02:40.3]} 12. Nf4 {[%clk 0:02:18.1]} 12... Qd7
{[%clk 0:02:30.3]} 13. d5 {[%clk 0:01:40.7]} 13... Ne5 {[%clk 0:02:23.9]} 14.
Qe2 {[%clk 0:01:27.4]} 14... Nf3+ {[%clk 0:02:05.4]} 15. Kh1 {[%clk 0:01:26.2]}
15... Rae8 {[%clk 0:02:01.4]} 16. Be3 {[%clk 0:01:15]} 16... a6 {[%clk
0:01:56.8]} 17. c5 {[%clk 0:01:05.8]} 17... g5 {[%clk 0:01:34.6]} 18. Ne6 {[%clk
0:00:58.6]} 18... Bxe6 {[%clk 0:01:34.2]} 19. dxe6 {[%clk 0:00:58.7]} 19... Qxe6
{[%clk 0:01:34.8]} 20. cxd6 {[%clk 0:00:55.7]} 20... cxd6 {[%clk 0:01:34.2]} 21.
Rad1 {[%clk 0:00:46.7]} 21... d5 {[%clk 0:01:33.7]} 22. Qc2 {[%clk 0:00:28]}
22... Rd8 {[%clk 0:00:59.3]} 23. Qb3 {[%clk 0:00:24.3]} 23... Kh8 {[%clk
0:00:56.1]} 24. Bc5 {[%clk 0:00:16.7]} 24... Rfe8 {[%clk 0:00:54.2]} 25. Ne2
{[%clk 0:00:15.9]} 25... Nd7 {[%clk 0:00:43.8]} 26. Be3 {[%clk 0:00:14]} 26...
Nde5 {[%clk 0:00:40.9]} 27. Nd4 {[%clk 0:00:10.3]} 27... Qd7 {[%clk 0:00:37]}
28. Qa3 {[%clk 0:00:03.9]} 28... Rf8 {[%clk 0:00:32.5]} 29. Qa5 {[%clk 0:00:03]}
29... Rf6 {[%clk 0:00:26]} 30. Rc1 {[%clk 0:00:02]} 30... b6 {[%clk 0:00:25.2]}
31. Qxa6 {[%clk 0:00:01.5]} 31... Nc4 {[%clk 0:00:20.6]} 32. Qb5 {[%clk
0:00:01.4]} 32... Nxe3 {[%clk 0:00:19.1]} 0-1